Cogmind - Beta 13 @@@ ROGUE MODE // 2024.05.21 @ 11:50:48 Player: Beef Result: Destroyed by G-47 Trooper with Particle Gun Performance ------------- Evolutions (2) 1000 Regions Visited (5) 1000 Robots Destroyed (35) 175 Value Destroyed (708) 708 Prototype IDs (7) 140 Alien Tech Used (0) 0 Bonus (39) 39 TOTAL SCORE: 3062 Bonus ------- Follower Combat Kills 39 Cogmind --------- Core Integrity 0/550 Matter 300/300 Energy 265/265 System Corruption 0% Temperature Warning (373) Movement Walking (120) Location -8/Storage Parts ------- > --- POWER (1) -------- Improved Ion Engine > --- PROPULSION (5) --- Aluminum Leg Aluminum Leg Wheel Airjet Airjet > --- UTILITY (3) ------ Small Storage Unit Advanced Weight Redist. System System Restoration Module > --- WEAPON (2) ------- Field Laser Field Laser > --- INVENTORY (8) ---- Improved Ion Engine Compact Wheel Compact Wheel Improved Heat Sink Authchip [R/Combat] System Restoration Module Field Laser Heavy Assault Rifle Peak State ------------ > --- POWER ------------ Light Nuclear Core > --- PROPULSION ------- Aerolev Unit Flight Unit Flight Unit Flight Unit Cesium-ion Thruster > --- UTILITY ---------- Experimental Sensor Array Signal Interpreter System Restoration Module > --- WEAPON ----------- Particle Cannon Particle Cannon > --- INVENTORY -------- Improved Ion Engine Improved Heat Sink Particle Charger System Restoration Module [Rating: 32] Favorites ----------- Power Light Ion Engine Engine Light Ion Engine Power Core Light Nuclear Core Propulsion Flight Unit Leg Aluminum Leg Wheel Wheel Hover Unit Airjet Flight Unit Flight Unit Utility Signal Interpreter Device Sensor Array Storage Small Storage Unit Processor Signal Interpreter Weapon EM Pulse Gun Energy Gun EM Pulse Gun Energy Cannon Particle Cannon Ballistic Gun Assault Rifle Special Melee Weapon Datajack Build | -11 -10 -10 -9 -8 -8 ------- Run | Yrd Mat Min Mat Mat Sto Slots Evolved 4 | . . . 2 2 . Power . | . . . . . . Propulsion 3 | . . . 2 1 . Utility 1 | . . . . 1 . Weapon . | . . . . . . Parts Attached 65 | 8 15 5 8 11 18 Power 5 | 1 1 1 1 . 1 Engine 4 | 1 1 1 . . 1 Core 1 | . . . 1 . . Reactor . | . . . . . . Propulsion 28 | 3 10 1 4 3 7 Treads . | . . . . . . Leg 2 | . . . . . 2 Wheel 11 | 3 7 . . . 1 Hover 6 | . . . . 2 4 Flight 9 | . 3 1 4 1 . Utility 16 | 2 2 2 . 4 6 Device 14 | 2 1 2 . 4 5 Storage 1 | . . . . . 1 Processor 1 | . 1 . . . . Hackware . | . . . . . . Protection . | . . . . . . Artifact . | . . . . . . Weapon 16 | 2 2 1 3 4 4 Energy Gun 6 | 1 2 . . . 3 Energy Cannon 2 | . . . 2 . . Ballistic Gun 7 | 1 . . 1 4 1 Ballistic Cannon . | . . . . . . Launcher . | . . . . . . Special Weapon . | . . . . . . Impact Weapon . | . . . . . . Slashing Weapon . | . . . . . . Piercing Weapon . | . . . . . . Special Melee Weapon 1 | . . 1 . . . Unidentified Prototypes 3 | . . . . 2 1 Parts Lost 17 | . 5 2 . 8 2 Power 2 | . 1 . . 1 . Propulsion 10 | . 3 . . 5 2 Utility 1 | . . . . 1 . Weapon 4 | . 1 2 . 1 . Highest Loss Streak 7 | . 4 1 . 7 1 To Critical Strikes . | . . . . . . Average Slot Usage (%) 93 | . 97 98 97 78 90 Engine 8 | . 13 14 . . 8 Core 2 | . . . 11 7 . Leg 2 | . . . . . 6 Wheel 6 | . 19 . . . 4 Hover 8 | . . . . 6 27 Flight 16 | . 7 28 43 28 . Device 17 | . 23 14 11 13 18 Storage 2 | . . . . . 6 Processor 6 | . 4 14 11 8 . Energy Gun 12 | . 18 23 3 . 8 Energy Cannon 3 | . . . 15 14 . Ballistic Gun 5 | . 9 . 2 1 8 Naked Turns 10 | . . . . 10 . Heaviest Build 20 | 9 9 8 14 17 20 Greatest Support 41 | 20 20 8 16 21 41 Greatest Overweight (x) 2 | . . . . 1 2 Average Overweight (x) . | . . . . . . Largest Inventory Capacity 8 | 5 5 5 5 5 8 Average Capacity 5 | 5 5 5 5 5 7 Most Carried 8 | 5 5 5 5 5 8 Average Carried 4 | 2 3 4 4 4 6 Final Capacity 8 | 5 5 5 5 5 8 Final Carried 8 | 5 5 5 5 5 8 Class Distribution -------------------- 46% | Scavenger-Mutant 36% | Mutant 16% | Scavenger-Sprinter Dominant Class ---------------- Scavenger-Mutant | -10/Materials Scavenger-Mutant | -10/Mines Scavenger-Sprinter | -9/Materials Scavenger-Sprinter | -8/Materials Mutant | -8/Storage Resources | -11 -10 -10 -9 -8 -8 ----------- Run | Yrd Mat Min Mat Mat Sto Matter Collected 1118 | 372 200 50 101 65 330 Remotely . | . . . . . . Salvage Created 1234 | 155 107 250 112 . 610 Parts 75 | 14 2 18 9 . 32 Haulers Intercepted . | . . . . . . Recyclers Shooed 1 | . . 1 . . . Parts Field Recycled . | . . . . . . Retrieved Matter . | . . . . . . Parts Self-Destructed . | . . . . . . Prevented . | . . . . . . Kills | -11 -10 -10 -9 -8 -8 ------- Run | Yrd Mat Min Mat Mat Sto Combat Hostiles Destroyed 21 | 1 2 5 3 . 10 Guns 17 | . 2 5 . . 10 Cannons 3 | . . . 3 . . AOE 1 | 1 . . . . . Classes Destroyed 10 | 3 1 5 1 . . Worker 5 | 1 . 2 . . 2 Builder 1 | . . 1 . . . Tunneler 5 | 4 . 1 . . . Recycler 3 | . . 1 . . 2 Operator 1 | . 1 . . . . Swarmer 7 | . . 3 1 . 3 Grunt 9 | 1 2 . 1 . 5 Sentry 3 | . . . 1 . 2 Demolisher 1 | . . 1 . . . Assembled 1 | . . 1 . . . Best Kill Streak 6 | 4 2 6 1 . 5 Combat Bots Only 4 | 1 2 2 1 . 4 Max Kills in Single Turn 2 | 2 1 1 1 . 2 Gunslinging 1 | . . . . . 1 Exploded 1 | 1 . . . . . Melee . | . . . . . . Uniques/NPCs Destroyed . | . . . . . . Combat | -11 -10 -10 -9 -8 -8 -------- Run | Yrd Mat Min Mat Mat Sto Hostile Shots Fired 248 | 4 38 34 30 76 66 Missed 84 | . 8 14 13 31 18 Damage Taken 2397 | 44 372 302 145 837 697 Core 864 | 12 79 158 53 462 100 Absorbed by Shields . | . . . . . . Regen/Repaired (Parts) 7 | . . . 7 . . Core Remaining (%) 60 | 95 . . 86 . . Volleys Fired 134 | 9 25 39 13 7 41 Largest 2 | 2 2 2 2 2 2 Hottest 136 | 60 60 80 136 136 126 Shots Fired 240 | 18 48 55 25 12 82 Gun 210 | 18 48 55 5 2 82 Cannon 30 | . . . 20 10 . Launcher . | . . . . . . Special . | . . . . . . Kinetic 76 | 9 25 . 2 2 38 Thermal 74 | . . . 20 10 44 Explosive . | . . . . . . Electromagnetic 90 | 9 23 55 3 . . Robot Hit Streak 12 | 4 12 4 2 2 10 Robot Miss Streak 6 | 1 3 4 6 3 4 Penetration Max . | . . . . . . Secondary Targets 2 | . . . . . 2 Max Gunslinging Chain 1 | . . . . . 1 Shots Hit Robots 130 | 11 29 27 4 5 54 Core Hits 54 | 7 5 12 3 2 25 Critical Kills . | . . . . . . Critical Parts Destroyed . | . . . . . . Critical Strikes 1 | . . . . . 1 Burn 1 | . . . . . 1 Melee Attacks . | . . . . . . Impact . | . . . . . . Slashing . | . . . . . . Piercing . | . . . . . . Sneak Attacks . | . . . . . . Combat Hostiles . | . . . . . . Follow-up Attacks . | . . . . . . Damage Inflicted 2121 | 229 295 441 82 120 954 Guns 1722 | 131 295 330 . 12 954 Cannons 190 | . . . 82 108 . Explosions 209 | 98 . 111 . . . Melee . | . . . . . . Ramming . | . . . . . . Kinetic 664 | 63 139 . . 12 450 Thermal 903 | 98 . 111 82 108 504 Explosive . | . . . . . . Electromagnetic 554 | 68 156 330 . . . Impact . | . . . . . . Slashing . | . . . . . . Piercing . | . . . . . . Highest Corruption 1 | . . . . 1 1 Average Corruption 1 | . . . . 1 1 Corruption Purged 2 | . . . . 1 1 Corruption Blocked . | . . . . . . Overload Shots . | . . . . . . Overflow Damage 10 | 1 . 9 . . . Projectiles . | . . . . . . Explosions 10 | 1 . 9 . . . Melee . | . . . . . . Knockbacks . | . . . . . . Impact . | . . . . . . Kinetic . | . . . . . . Secondary . | . . . . . . Self-Inflicted Damage 29 | . . 29 . . . Shots 1 | . . 1 . . . Rammed . | . . . . . . Targets Rammed . | . . . . . . Kicked . | . . . . . . Crushed . | . . . . . . Highest Temperature 426 | 24 90 158 426 171 364 Average Temperature 88 | 16 27 41 166 56 102 Received Heat Transfer 841 | 24 180 106 9 117 405 Effects 5 | . . . 4 . 1 Shutdowns 1 | . . . 1 . . Energy Bleed 1 | . . . 1 . . Interference 1 | . . . 1 . . Matter Decay 1 | . . . 1 . . Damage (minor) 1 | . . . . . 1 Siege Activations . | . . . . . . Robots Corrupted . | . . . . . . Combat Hostiles . | . . . . . . Parts Fried . | . . . . . . Impact Corruptions . | . . . . . . Robots Melted . | . . . . . . Combat Hostiles . | . . . . . . Parts Melted 1 | . . . . . 1 Heat Transferred 1717 | 100 . 100 148 185 1184 Parts Sabotaged . | . . . . . . Parts Stolen . | . . . . . . Parts Stripped . | . . . . . . Power Chain Reactions 4 | 1 . 3 . . . Alert | -11 -10 -10 -9 -8 -8 ------- Run | Yrd Mat Min Mat Mat Sto Peak Influence 386 | 46 71 155 276 312 386 Initial 131 | . 29 27 60 116 131 Average 131 | 20 50 84 150 173 229 Maximum Alert Level 1 | . . . 1 1 1 Low Security (%) 78 | 100 100 100 68 65 49 Level 1 21 | . . . 31 34 50 Level 2 . | . . . . . . Level 3 . | . . . . . . Level 4 . | . . . . . . Level 5 . | . . . . . . High Security . | . . . . . . Max Security . | . . . . . . Squads Dispatched 7 | . 1 . 1 3 2 Investigation 3 | . 1 . 1 . 1 Extermination . | . . . . . . Reinforcement 4 | . . . . 3 1 Assault . | . . . . . . Garrison . | . . . . . . Intercept . | . . . . . . Searches Triggered . | . . . . . . Construction Impeded . | . . . . . . Haulers Reinforced . | . . . . . . Active Scanning Responses . | . . . . . . Cargo Convoy Interrupts . | . . . . . . Stealth | -11 -10 -10 -9 -8 -8 --------- Run | Yrd Mat Min Mat Mat Sto Distress Signals 8 | . 1 . 1 6 . Communications Jammed . | . . . . . . Distress Signals . | . . . . . . Times Spotted 75 | 1 4 11 13 29 17 Peak Tracking Total 16 | 1 2 3 7 16 6 Tactical Retreats 10 | . . 2 2 5 1 Traps | -11 -10 -10 -9 -8 -8 ------- Run | Yrd Mat Min Mat Mat Sto Traps Triggered 3 | . 1 . . . 2 Indirectly . | . . . . . . Trap Hack Attempts . | . . . . . . Triggered . | . . . . . . Disarmed . | . . . . . . Reprogrammed . | . . . . . . Reused . | . . . . . . Traps Extracted . | . . . . . . Installed . | . . . . . . Triggered . | . . . . . . Machines | -11 -10 -10 -9 -8 -8 ---------- Run | Yrd Mat Min Mat Mat Sto Machines Disabled . | . . . . . . Max in Single Turn . | . . . . . . Machines Repaired . | . . . . . . Machines Dismantled . | . . . . . . Machines Sabotaged . | . . . . . . Overloaded Fab Kills . | . . . . . . Hacking | -11 -10 -10 -9 -8 -8 --------- Run | Yrd Mat Min Mat Mat Sto Machines Accessed 16 | . 6 . 2 3 5 Terminals 7 | . 5 . . 1 1 Fabricators . | . . . . . . Repair Stations 6 | . 1 . 2 1 2 Recycling Units 3 | . . . . 1 2 Scanalyzers . | . . . . . . Garrison Access . | . . . . . . Total Hacks 55 | . 26 . 6 10 13 Successful 27 | . 11 . 2 6 8 Failed 28 | . 15 . 4 4 5 Catastrophic 5 | . 3 . 1 . 1 Database Lockouts . | . . . . . . Manual 8 | . 5 . . . 3 Terminals 33 | . 24 . . 5 4 Fabricators . | . . . . . . Repair Stations 17 | . 2 . 6 3 6 Recycling Units 5 | . . . . 2 3 Scanalyzers . | . . . . . . Garrison Access . | . . . . . . Terminal Hacks 17 | . 11 . . 3 3 Record 6 | . 3 . . . 3 Prototype ID Bank 2 | . 1 . . 1 . Branch Access Points 1 | . 1 . . . . Emergency Access Points 1 | . 1 . . . . Alert Level 1 | . . . . 1 . Unreport Threat 1 | . 1 . . . . Locate Traps 2 | . 1 . . 1 . Maintenance Status 1 | . 1 . . . . Investigation Status 1 | . 1 . . . . Hauler Manifests 1 | . 1 . . . . Fabricator Hacks . | . . . . . . Repair Station Hacks 5 | . . . 2 1 2 Scan Component 4 | . . . 1 1 2 Repair 1 | . . . 1 . . Recycling Unit Hacks 5 | . . . . 2 3 Report Inventory 3 | . . . . 1 2 Retrieve Components 2 | . . . . 1 1 Scanalyzer . | . . . . . . Garrison Access Hacks . | . . . . . . Unauthorized Hacks . | . . . . . . Terminals . | . . . . . . Fabricators . | . . . . . . Repair Stations . | . . . . . . Recycling Units . | . . . . . . Scanalyzers . | . . . . . . Garrison Access . | . . . . . . Data Cores Recovered . | . . . . . . Used . | . . . . . . Hacking Detections 13 | . 6 . 1 2 4 Full Trace Events 4 | . 2 . 1 1 . Feedback Events 1 | . . . . 1 . Corruption 1 | . . . . 1 . Feedback Blocked . | . . . . . . Robot Schematics Acquired . | . . . . . . Robots Built . | . . . . . . Authchips . | . . . . . . Time . | . . . . . . Total Robot Build Rating . | . . . . . . Part Schematics Acquired . | . . . . . . Parts Built . | . . . . . . Authchips . | . . . . . . Time . | . . . . . . Total Part Build Rating . | . . . . . . Parts Repaired 1 | . . . 1 . . Time 26 | . . . 26 . . Parts Recycled . | . . . . . . Recycled Matter . | . . . . . . Retrieved Matter . | . . . . . . Retrieved Components 4 | . . . . 2 2 Parts Scanalyzed . | . . . . . . Part Schematics Acquired . | . . . . . . Parts Damaged . | . . . . . . Bothacking | -11 -10 -10 -9 -8 -8 ------------ Run | Yrd Mat Min Mat Mat Sto Used RIF Installer . | . . . . . . Robots Hacked . | . . . . . . Non-combat . | . . . . . . Combat . | . . . . . . Robot Hacks Applied . | . . . . . . Relay Couplers Released . | . . . . . . Fabnet Peak Effective % . | . . . . . . Robots Rewired . | . . . . . . Allies Hacked . | . . . . . . Hacks Repelled . | . . . . . . Allies | -11 -10 -10 -9 -8 -8 -------- Run | Yrd Mat Min Mat Mat Sto Total Allies 3 | . . 3 . . . Largest Group 3 | . . 3 . . . Highest-Rated Group 40 | . . 40 . . . Highest-Rated Ally 16 | . . 16 . . . Total Orders . | . . . . . . Ally Attacks 18 | . . 18 . . . Total Damage 188 | . . 188 . . . Kills 4 | . . 4 . . . Allies Corrupted . | . . . . . . Allies Melted . | . . . . . . Intel | -11 -10 -10 -9 -8 -8 ------- Run | Yrd Mat Min Mat Mat Sto Robot Analysis Total . | . . . . . . Derelict Logs Recovered 1 | . . 1 . . . Drone Launches . | . . . . . . Drone Recoveries . | . . . . . . Exploration | -11 -10 -10 -9 -8 -8 ------------- Run | Yrd Mat Min Mat Mat Sto Turns Passed 1746 | 127 383 344 217 183 492 Spaces Moved 2207 | 104 459 490 369 399 386 Core 67 | 18 . . . 34 15 Treads . | . . . . . . Legs 107 | . . . . . 107 Wheels 313 | 86 227 . . . . Hover 264 | . . . . . 264 Flight 1456 | . 232 490 369 365 . Fastest Speed 27 | 50 37 37 31 27 48 Average Speed 48 | 74 58 37 31 33 75 Slowest Speed 180 | 80 80 37 31 115 180 Overloaded Moves . | . . . . . . Propulsion Burnouts . | . . . . . . Robots Hopped 11 | . . 1 6 4 . Cave-ins Triggered . | . . . . . . Exploration Rate (%) 41 | 6 62 74 29 41 35 Regions Visited 5 Branch Regions 2 Pre-discovered Areas . | . . . . . . Known Exits Taken 3 | . 1 1 1 . . Unknown Exits Taken 2 | 1 . . . 1 . Scrap Searched 3 | . . 3 . . . Spaces Dug . | . . . . . . Terrain Destroyed 15 | . . 14 . 1 . Melee . | . . . . . . Projectile 1 | . . . . 1 . AOE 14 | . . 14 . . . Terrain Rammed . | . . . . . . Walls Destroyed . | . . . . . . Machines Disabled . | . . . . . . Actions | -11 -10 -10 -9 -8 -8 --------- Run | Yrd Mat Min Mat Mat Sto Total 2638 | 136 529 600 440 430 503 Wait 149 | . 2 51 50 5 41 Move 2180 | 103 458 487 356 390 386 Hop 11 | . . 1 6 4 . Pick Up 58 | 12 15 8 4 7 12 Fast Attach 20 | 4 2 . 2 6 6 Attach 24 | 3 7 1 3 2 8 Detach 3 | . 2 . . . 1 Swap 21 | 1 6 4 3 3 4 Drop 38 | 4 12 9 3 6 4 Fire 134 | 9 25 39 13 7 41 Melee . | . . . . . . Ram . | . . . . . . Kick . | . . . . . . Crush . | . . . . . . Escape Stasis . | . . . . . . Rewire . | . . . . . . Trap . | . . . . . . Miscellaneous . | . . . . . . Route ------- -11/Scrapyard -10/Materials (discovered 2 exits: *Mat / *Min) -10/Mines -9/Materials (discovered 2 exits: *Mat / Min) -8/Materials (discovered 2 exits: [*Fac] / *Sto) -8/Storage History --------- Turn | Location | Event 2 | -11/Scrapyard | Met Revision 17 55 | -11/Scrapyard | Discovered new exit (range 8) 128 | -11/Scrapyard | Entered Materials 284 | -10/Materials | Lost 4 parts (1p2n1w) 407 | -10/Materials | Identified exit to Mines 411 | -10/Materials | Discovered new exit (range 11) 495 | -10/Materials | Identified exit to Materials 511 | -10/Materials | Entered Mines 533 | -10/Mines | Assembled infested the area 548 | -10/Mines | Build established: Scavenger-Mutant 562 | -10/Mines | Met a Derelict bent on vengeance 568 | -10/Mines | Core integrity fell below 50% 588 | -10/Mines | Assisted by bots powering up and referring to "LRC-V3" 619 | -10/Mines | Found a damaged Exp. Sensor Array with a note attached 620 | -10/Mines | Found Prototype Device 682 | -10/Mines | Learned 2 Materials zone layouts 706 | -10/Mines | Core integrity fell below 20% 738 | -10/Mines | Discovered exit to Materials (range 14) 855 | -10/Mines | Entered Materials 855 | -9/Materials | Evolved 2 slots: Propulsion x2 856 | -9/Materials | Identified exit to Mines 1056 | -9/Materials | Repaired Flight Unit 1068 | -9/Materials | Discovered new exit (range 13) 1072 | -9/Materials | Identified exit to Materials 1072 | -9/Materials | Entered another Materials area 1072 | -8/Materials | Evolved 2 slots: Propulsion x1, Utility x1 1094 | -8/Materials | Identified Exp. Sensor Array 1204 | -8/Materials | Discovered new exit (range 16) 1233 | -8/Materials | Core integrity fell below 50% 1251 | -8/Materials | Core integrity fell below 20% 1253 | -8/Materials | Discovered new exit (range 4) 1255 | -8/Materials | Entered Storage 1259 | -8/Storage | Lost 7 parts (1p4n1u1w) 1481 | -8/Storage | Build established: Mutant 1747 | -8/Storage | Destroyed by G-47 Trooper with Particle Gun Last Messages --------------- Rating: 3 Time: 19 01728_ S-10 Pest suffers critical hit (Burn). 01728_ Destroyed Flight Unit. 01731_ S-10 Pest destroyed. 01731_ Switching to secondary target: S-10 Pest. 01731_ S-10 Pest destroyed. 01732_ K-01 Serf collects debris. 01734_ S-10 Pest destroyed. 01735_ K-01 Serf collects debris. 01741_ Critical hit (Burn: +37). 01743_ K-01 Serf collects debris. 01744_ G-47 Trooper destroyed. 01744_ Switching to secondary target: G-47 Trooper. 01744_ K-01 Serf destroyed. 01745_ Overheating: Adv. Weight Redist. System damaged (-2). 01745_ K-01 Serf collects debris. 01745_ Critical hit (Burn: +37). Map ----- +----------------------------------------------------+ | | | | | | | | | | | | | | | | | | | | | | | ?????????????????????????????????????????????????? | | ?????????????????????????????????????????????????? | | ?????????????????????????????????????????????????? | | ?????????????????????????????????????????????????? | | ?????????????????????????????????????????????????? | | ????????????###################################### | | ???????????? %^ ! | | ???????????? [^ a ![ ! | | ???????????? =[=* %% ** | | ????????????????####+###%[k###########/########## | | ???????????????????????#%%=#???#### #????# | | ???????????????????????#ag%#???#""" """ #????# | | ???????????????????????# !#???#"T """ #????# | | ???????????????????????# #???#""" """ #????# | | ???????????????????????# @ #???#### ###### | | ???????????????????????# #??????# """ + | | ???????????????????????# #??????# """ # | | ???????????????????????# a#??????# """ # | | ??????????????????????## ##?????# + | | ??????????????????????# ################### | | ??????????????????????# # # | | ??????????????????????# # # | | ??????????????????????# # + | | ??????????????????????# ######## ## # | | ????????????????????#####+####?????# ## # | | ?????????????????#### #?????# #######+## | | ?????????????????#""" """ #######+###???# ## | | ?????????????????#"R """ # [=%##### ## | | ?????????????????#""" """ # """""[=+% = | | ?????????????????#""" #??????"[[######### | | ?????????????????#### """ # ?????"!!#????# | | ????????????????????# """ # ????"" #????# | | ????????????????????# """ # ????" #????# ## | | ????????????????????# # """"" #????## ### | | ????????????????????########## #?????# #?# | | ??????????????????################+########### ### | | ??????????????????# # | | ??????????????????# + | | ??????????????????# # | +----------------------------------------------------+ Best States ------------- Heat Dissipation 45 Energy Generation 14 Energy Capacity 265 Matter Stores 300 Matter Capacity 300 Sight Range 16 Robot Scan Range 20 Terrain Scan Range 16 Terrain Scan Density 10 Additional Mass Support 9 Evasion (%) 64 Particle Charging 15 Authchip Count 1 Item Schematics ----------------- None Robot Schematics ------------------ None Fabricated ------------ Nothing Alien Tech Used ----------------- None Achievements -------------- Close Call Everything Is Under Control I Survived The Infestation Challenges ------------ None Game ------ Seed CompactSystemMicroactuators Manual? 0 Play Time 00:44:01 Cumulative 5.1 hours Start 2024.05.21 @ 11:07:44 End 2024.05.21 @ 11:50:48 Sessions 1 Manual Loads 0 Difficulty Rogue Special Mode None Game No. 3 Rogue 3 Adventurer 0 Explorer 0 Win Type - Total 0 Types 0/0/0/0/0/0/0/0/0 Lore% 5 Gallery% 9 Achievement% 11 Wizard Run 0 Options --------- Layout 1 ASCII 0 Keyboard 1 Movement Numpad Keybinds 0 Fullscreen 1 Font 24/Smallcaps Map View 50x35 Zoom Use 0% Tactical HUD 1 Map Filters NONE Filters NONE Steam 1 RUN: 53be0167-5a13-421a-9ad7-cd880ce3af3b